lending/lending_fUSD_20251022
["ID","MTS","AMOUNT","RATE_DAILY","PERIOD"]
[392072958,1761136279245,-1536.18,0.00048767,120]
[392072959,1761136279255,-2863.84,0.00048767,30]
[392072960,1761136279265,-1637.97,0.00048767,120]
[392072961,1761136279275,-1166.77,0.00048767,120]
[392072962,1761136279286,-744.86,0.00048767,120]
[392072963,1761136279296,-500.0,0.00048767,120]
[392072964,1761136279306,-1207.01,0.00048767,120]
[392072965,1761136279316,-933.44,0.00048767,120]
[392072966,1761136279327,-506.79,0.00048767,120]
[392072967,1761136279337,-500.0,0.00048767,120]
[392072968,1761136279347,-10625.73,0.00048767,14]
[392072969,1761136279358,-1178.29,0.00048767,120]
[392072970,1761136279372,-878.7,0.00048767,120]
[392072971,1761136279382,-4752.5,0.00048767,120]
[392072972,1761136279392,-664.87,0.00048767,120]
[392072973,1761136279401,-668.78,0.00048767,120]
[392072974,1761136279411,-1327.11,0.00048767,120]
[392072975,1761136279421,-1030.79,0.00048767,120]
[392072976,1761136279433,-508.49,0.00048767,120]
[392072977,1761136279443,-1158.45,0.00048767,120]
[392072978,1761136279454,-601.91,0.00048767,120]
[392072979,1761136279464,-10000.0,0.000488,120]
[392072980,1761136279474,-20348.3682608,0.000488,120]
[392072981,1761136279483,-11927.26238839,0.000488,120]
[392072982,1761136279495,-9692.1660039,0.000488,120]
[392072983,1761136279505,-499999.0,0.000488,120]
[392072984,1761136279514,-233345.70561167,0.000488,120]
[392072985,1761136279525,-673.94089704,0.000488,120]
[392072986,1761136279534,-499999.0,0.000488,120]
[392072987,1761136279544,-63644.21305598,0.000488,120]
[392072988,1761136279553,-20279.0,0.000488,120]
[392072989,1761136279564,-582.58,0.00048821,120]
[392072990,1761136279574,-500.0,0.00048821,120]
[392072991,1761136279584,-5164.0,0.00048821,120]
[392072992,1761136279594,-856.57,0.00048821,120]
[392072993,1761136279604,-938.33,0.00048821,120]
[392072994,1761136279614,-713.85,0.00048821,120]
[392072995,1761136279624,-805.35,0.00048821,120]
[392072996,1761136279634,-1217.66,0.00048821,120]
[392072997,1761136279643,-800.56,0.00048821,120]
[392072998,1761136279653,-1794.18,0.00048821,120]
[392072999,1761136279663,-161.94,0.00048857,2]
[392073000,1761136279672,-664.40372179,0.0004888,120]
[392073001,1761136279681,-1223.89903085,0.000489,120]
[392073002,1761136279690,-445.0,0.00048986,120]
[392073003,1761136279699,-1000.0,0.00048999,120]
[392073004,1761136279709,-50000.0,0.00049,49]
[392073005,1761136279718,-20207.53135982,0.00049,14]
[392073006,1761136279728,-784.46110988,0.00049,30]
[392073007,1761136279737,-1000.0,0.00049,120]
[392073008,1761136279746,-3400.0,0.00049,120]
[392073009,1761136279756,-300.0,0.00049,30]
[392073010,1761136279765,-10000.0,0.00049,120]
[392073011,1761136279775,-1283.08240074,0.00049,120]
[392073012,1761136279784,-7547.0,0.00049,120]
[392073013,1761136279793,-1856.0,0.00049,120]
[392073014,1761136279803,-1856.0,0.00049,120]
[392073015,1761136279812,-200.0,0.00049013,120]
[392073016,1761136279822,-250.0,0.00049015,30]
[392073017,1761136279833,-150.0,0.00049015,30]
[392073018,1761136279842,-150.0,0.00049015,30]
[392073019,1761136279851,-150.0,0.00049015,30]
[392073020,1761136279860,-150.0,0.00049015,30]
[392073021,1761136279869,-150.0,0.00049015,30]
[392073022,1761136279879,-250.0,0.00049015,30]
[392073023,1761136279888,-150.0,0.00049015,30]
[392073024,1761136279898,-150.0,0.00049015,30]
[392073025,1761136279908,-150.0,0.00049015,30]
[392073026,1761136279919,-150.0,0.00049015,30]
[392073027,1761136279929,-150.0,0.00049015,2]
[392073028,1761136279939,-150.0,0.00049015,30]
[392073029,1761136279949,-150.0,0.00049015,30]
[392073030,1761136279958,-240.0,0.00049015,30]
[392073031,1761136279967,-150.0,0.00049015,30]
[392073032,1761136279977,-150.0,0.00049015,30]
[392073033,1761136279987,-200.0,0.00049015,30]
[392073034,1761136279997,-150.0,0.00049015,30]
[392073035,1761136280008,-500.0,0.00049015,30]
[392073036,1761136280018,-500.0,0.00049015,30]
[392073037,1761136280028,-329.0,0.00049015,30]
[392073038,1761136280037,-150.0,0.00049015,2]
[392073039,1761136280047,-150.0,0.00049015,2]
[392073040,1761136280056,-150.0,0.00049015,2]
[392073041,1761136280065,-150.0,0.00049015,2]
[392073042,1761136280075,-150.0,0.00049015,2]
[392073043,1761136280084,-200.0,0.00049015,2]
[392073044,1761136280094,-150.0,0.00049015,30]
[392073045,1761136280103,-150.0,0.00049015,30]
[392073046,1761136280112,-150.0,0.00049015,30]
[392073047,1761136280122,-150.0,0.00049015,30]
[392073048,1761136280133,-150.0,0.00049015,30]
[392073049,1761136280142,-250.0,0.00049015,30]
[392073050,1761136280151,-591.78338163,0.00049041,120]
[392073051,1761136280161,-630.1,0.00049041,120]
[392073052,1761136280170,-790.48,0.00049041,120]
[392073053,1761136280180,-501.67,0.00049041,120]
[392073054,1761136280190,-500.0,0.00049041,120]
[392073055,1761136280199,-1774.5,0.00049041,60]
[392073056,1761136280209,-564.67595551,0.00049041,120]
[392073057,1761136280219,-500.0,0.00049041,120]
[392073058,1761136280228,-911.59,0.00049041,120]
[392073059,1761136280237,-774.69,0.00049041,120]
[392073060,1761136280247,-565.62,0.00049041,120]
[392073061,1761136280256,-649.37,0.00049041,30]
[392073062,1761136280265,-500.0,0.00049041,120]
[392073063,1761136280274,-500.0,0.00049041,30]
[392073064,1761136280284,-959.74,0.00049041,120]
[392073065,1761136280295,-629.63,0.00049041,120]
[392073066,1761136280304,-807.42,0.00049041,120]
[392073067,1761136280313,-1040.88,0.00049041,120]
[392073068,1761136280323,-1060.98,0.00049041,120]
[392073069,1761136280332,-843.75,0.00049041,120]
[392073070,1761136280341,-904.48,0.00049041,120]
[392073071,1761136280351,-3305.92,0.00049041,120]
[392073072,1761136280360,-615.48,0.00049041,120]
[392073073,1761136280372,-1407.21,0.00049041,120]
[392073074,1761136280382,-682.22,0.00049041,120]
[392073075,1761136280391,-568.21,0.00049041,120]
[392073076,1761136280401,-1200.9,0.00049041,120]
[392073077,1761136280411,-932.59,0.00049041,120]
[392073078,1761136280420,-1170.48,0.00049041,120]
[392073079,1761136280430,-300.0,0.00049041,120]
[392073080,1761136280440,-638.4,0.00049041,120]
[392073081,1761136280450,-500.0,0.00049041,120]
[392073082,1761136280459,-1270.99,0.00049041,120]
[392073083,1761136280469,-466.42052305,0.00049041,120]
[392073084,1761136280478,-1189.64,0.00049041,120]
[392073085,1761136280487,-1087.75,0.00049041,12]
[392073086,1761136280496,-940.69,0.00049041,120]
[392073087,1761136280506,-925.82,0.00049041,120]
[392073088,1761136280515,-1280.38,0.00049041,120]
[392073089,1761136280525,-184.9135042,0.00049041,120]
[392073090,1761136280534,-875.57,0.00049041,2]
[392073091,1761136280544,-830.71,0.00049041,120]
[392073092,1761136280553,-760.46,0.00049041,120]
[392073093,1761136280563,-964.7,0.00049041,120]
[392073094,1761136280573,-1167.09,0.00049041,120]
[392073095,1761136280581,-1476.47,0.00049041,120]
[392073096,1761136280591,-1391.79,0.00049041,120]
[392073097,1761136280600,-500.0,0.00049041,120]
[392073098,1761136280609,-560.77,0.00049041,120]
[392073099,1761136280619,-836.47,0.00049041,120]
[392073100,1761136280630,-1536.18,0.00049041,120]
[392073101,1761136280639,-2863.84,0.00049041,30]
[392073102,1761136280648,-1637.97,0.00049041,120]
[392073103,1761136280658,-1166.77,0.00049041,120]
[392073104,1761136280667,-744.86,0.00049041,120]
[392073105,1761136280677,-500.0,0.00049041,120]
[392073106,1761136280688,-1207.01,0.00049041,120]
[392073107,1761136280698,-933.44,0.00049041,120]
[392073108,1761136280709,-506.79,0.00049041,120]
[392073109,1761136280718,-500.0,0.00049041,120]
[392073110,1761136280728,-10625.73,0.00049041,14]
[392073111,1761136280739,-1178.29,0.00049041,120]
[392073112,1761136280749,-878.7,0.00049041,120]
[392073113,1761136280758,-4752.5,0.00049041,120]
[392073114,1761136280768,-664.87,0.00049041,120]
[392073115,1761136280777,-668.78,0.00049041,120]
[392073116,1761136280787,-1327.11,0.00049041,120]
[392073117,1761136280796,-1030.79,0.00049041,120]
[392073118,1761136280805,-508.49,0.00049041,120]
[392073119,1761136280815,-1158.45,0.00049041,120]
[392073120,1761136280825,-601.91,0.00049041,120]
[392073121,1761136280834,-582.58,0.00049095,120]
[392073122,1761136280843,-620.0927639,0.00049095,120]
[392073123,1761136280853,-5164.0,0.00049095,120]
[392073124,1761136280862,-856.57,0.00049095,120]
[392073125,1761136280871,-938.33,0.00049095,120]
[392073126,1761136280881,-713.85,0.00049095,120]
[392073127,1761136280890,-805.35,0.00049095,120]
[392073128,1761136280900,-1217.66,0.00049095,120]
[392073129,1761136280909,-800.56,0.00049095,120]
[392073130,1761136280919,-1794.18,0.00049095,120]
[392073131,1761136280928,-1000.0,0.00049314,120]
[392073132,1761136280938,-325.0,0.00049315,30]
[392073133,1761136280983,-300.0,0.00049315,30]
[392073134,1761136280993,-300.0,0.00049315,30]
[392073135,1761136281002,-290.0,0.00049315,30]
[392073136,1761136281011,-300.0,0.00049315,30]
[392073137,1761136281021,-630.1,0.00049315,120]
[392073138,1761136281082,-790.48,0.00049315,120]
[392073139,1761136281091,-501.67,0.00049315,120]
[392073140,1761136281100,-500.0,0.00049315,120]
[392073141,1761136281134,-1774.5,0.00049315,60]
[392073142,1761136281145,-170.09340448,0.00049315,120]
[392073143,1761136281154,-911.59,0.00049315,120]
[392073144,1761136281163,-774.69,0.00049315,120]
[392073145,1761136281172,-565.62,0.00049315,120]
[392073146,1761136281182,-649.37,0.00049315,30]
[392073147,1761136281192,-500.0,0.00049315,120]
[392073148,1761136281202,-230.8938004,0.00049315,30]
[392073149,1761136281212,-959.74,0.00049315,120]
[392073150,1761136281222,-629.63,0.00049315,120]
[392073151,1761136281231,-807.42,0.00049315,120]
[392073152,1761136281241,-1040.88,0.00049315,120]
[392073153,1761136281251,-1060.98,0.00049315,120]
[392073154,1761136281260,-843.75,0.00049315,120]
[392073155,1761136281270,-904.48,0.00049315,120]
[392073156,1761136281279,-3305.92,0.00049315,120]
[392073157,1761136281288,-615.48,0.00049315,120]
[392073158,1761136281297,-1407.21,0.00049315,120]
[392073159,1761136281306,-682.22,0.00049315,120]
[392073160,1761136281316,-568.21,0.00049315,120]
[392073161,1761136281325,-1200.9,0.00049315,120]
[392073162,1761136281335,-932.59,0.00049315,120]
[392073163,1761136281344,-1170.48,0.00049315,120]
[392073164,1761136281354,-300.0,0.00049315,120]
[392073165,1761136281363,-638.4,0.00049315,120]
[392073166,1761136281376,-507.94002294,0.00049315,120]
[392073167,1761136281386,-1270.99,0.00049315,120]
[392073168,1761136281395,-1189.64,0.00049315,120]
[392073169,1761136281405,-1087.75,0.00049315,12]
[392073170,1761136281415,-940.69,0.00049315,120]
[392073171,1761136281424,-925.82,0.00049315,120]
[392073172,1761136281434,-1280.38,0.00049315,120]
[392073173,1761136281443,-875.57,0.00049315,2]
[392073174,1761136281454,-830.71,0.00049315,120]
[392073175,1761136281463,-760.46,0.00049315,120]
[392073176,1761136281473,-964.7,0.00049315,120]
[392073177,1761136281482,-1167.09,0.00049315,120]
[392073178,1761136281492,-1476.47,0.00049315,120]
[392073179,1761136281501,-1391.79,0.00049315,120]
[392073180,1761136281510,-500.0,0.00049315,120]
[392073181,1761136281520,-560.77,0.00049315,120]
[392073182,1761136281529,-836.47,0.00049315,120]
[392073183,1761136281538,-1536.18,0.00049315,120]
[392073184,1761136281547,-2863.84,0.00049315,30]
[392073185,1761136281557,-1637.97,0.00049315,120]
[392073186,1761136281566,-1166.77,0.00049315,120]
[392073187,1761136281575,-744.86,0.00049315,120]
[392073188,1761136281584,-200.95,0.00049315,120]
[392073189,1761136281594,-1207.01,0.00049315,120]
[392073190,1761136281603,-933.44,0.00049315,120]
[392073191,1761136281613,-506.79,0.00049315,120]
[392073192,1761136281622,-500.0,0.00049315,120]
[392073193,1761136281631,-10625.73,0.00049315,14]
[392073194,1761136281640,-1178.29,0.00049315,120]
[392073195,1761136281650,-878.7,0.00049315,120]
[392073196,1761136281659,-4752.5,0.00049315,120]
[392073197,1761136281669,-664.87,0.00049315,120]
[392073198,1761136281678,-1000.0,0.00049315,30]
[392073199,1761136281687,-668.78,0.00049315,120]
[392073200,1761136281696,-1327.11,0.00049315,120]
[392073201,1761136281705,-1030.79,0.00049315,120]
[392073202,1761136281715,-508.49,0.00049315,120]
[392073203,1761136281724,-1158.45,0.00049315,120]
[392073204,1761136281733,-601.91,0.00049315,120]
[392073205,1761136281743,-1000.0,0.00049315,30]
[392073206,1761136281752,-1000.0,0.00049315,30]
[392073207,1761136281762,-1000.0,0.00049315,30]
[392073208,1761136281771,-1000.0,0.00049315,30]
[392073209,1761136281780,-1000.0,0.00049315,30]
[392073210,1761136281789,-1000.0,0.00049315,30]
[392073211,1761136281798,-1000.0,0.00049315,30]
[392073212,1761136281808,-1000.0,0.00049315,30]
[392073213,1761136281817,-1000.0,0.00049315,30]
[392073214,1761136281826,-1000.0,0.00049315,30]
[392073215,1761136281835,-1000.0,0.00049315,30]
[392073216,1761136281845,-1000.0,0.00049315,30]
[392073217,1761136281854,-1000.0,0.00049315,30]
[392073218,1761136281864,-1000.0,0.00049315,30]
[392073219,1761136281873,-1000.0,0.00049315,30]
[392073220,1761136281882,-1000.0,0.00049315,30]
[392073221,1761136281891,-1000.0,0.00049315,30]
[392073222,1761136281900,-1000.0,0.00049315,30]
[392073223,1761136281909,-1000.0,0.00049315,30]
[392073224,1761136281919,-1000.0,0.00049315,30]
[392073225,1761136281927,-16313.08,0.00049315,120]
[392073226,1761136281937,-582.58,0.00049369,120]
[392073227,1761136281946,-5164.0,0.00049369,120]
[392073228,1761136281955,-856.57,0.00049369,120]
[392073229,1761136281964,-938.33,0.00049369,120]
[392073230,1761136281973,-713.85,0.00049369,120]
[392073231,1761136281983,-805.35,0.00049369,120]
[392073232,1761136281992,-1217.66,0.00049369,120]
[392073233,1761136282002,-800.56,0.00049369,120]
[392073234,1761136282013,-1794.18,0.00049369,120]
[392073235,1761136282022,-2000.0,0.0004944,59]
[392073236,1761136282032,-169768.1883,0.00049444,30]
[392073237,1761136282042,-319.96,0.00049471,2]
[392073238,1761136282053,-148537.90030872,0.000495,120]
[392073239,1761136282062,-4328.33668764,0.000495,120]
[392073240,1761136282072,-630.1,0.00049589,120]
[392073241,1761136282081,-790.48,0.00049589,120]
[392073242,1761136282091,-501.67,0.00049589,120]
[392073243,1761136282100,-500.0,0.00049589,120]
[392073244,1761136282109,-1774.5,0.00049589,60]
[392073245,1761136282119,-911.59,0.00049589,120]
[392073246,1761136282128,-774.69,0.00049589,120]
[392073247,1761136282137,-565.62,0.00049589,120]
[392073248,1761136282147,-649.37,0.00049589,30]
[392073249,1761136282156,-500.0,0.00049589,120]
[392073250,1761136282167,-959.74,0.00049589,120]
[392073251,1761136282176,-629.63,0.00049589,120]
[392073252,1761136282186,-807.42,0.00049589,120]
[392073253,1761136282196,-1040.88,0.00049589,120]
[392073254,1761136282205,-1060.98,0.00049589,120]
[392073255,1761136282215,-843.75,0.00049589,120]
[392073256,1761136282225,-904.48,0.00049589,120]
[392073257,1761136282236,-3305.92,0.00049589,120]
[392073258,1761136282246,-615.48,0.00049589,120]
[392073259,1761136282257,-1407.21,0.00049589,120]
[392073260,1761136282267,-682.22,0.00049589,120]
[392073261,1761136282278,-568.21,0.00049589,120]
[392073262,1761136282287,-1200.9,0.00049589,120]
[392073263,1761136282298,-932.59,0.00049589,120]
[392073264,1761136282307,-1170.48,0.00049589,120]
[392073265,1761136282318,-300.0,0.00049589,120]
[392073266,1761136282329,-638.4,0.00049589,120]
[392073267,1761136282339,-1270.99,0.00049589,120]
[392073268,1761136282348,-1189.64,0.00049589,120]
[392073269,1761136282358,-1087.75,0.00049589,12]
[392073270,1761136282370,-940.69,0.00049589,120]
[392073272,1761136282380,-925.82,0.00049589,120]
[392073273,1761136282390,-1280.38,0.00049589,120]
[392073274,1761136282400,-875.57,0.00049589,2]
[392073275,1761136282411,-830.71,0.00049589,120]
[392073276,1761136282423,-760.46,0.00049589,120]
[392073277,1761136282432,-964.7,0.00049589,120]
[392073278,1761136282443,-1167.09,0.00049589,120]
[392073279,1761136282452,-1476.47,0.00049589,120]
[392073280,1761136282462,-1391.79,0.00049589,120]
[392073281,1761136282472,-500.0,0.00049589,120]
[392073282,1761136282481,-560.77,0.00049589,120]
[392073283,1761136282492,-836.47,0.00049589,120]
[392073284,1761136282503,-1536.18,0.00049589,120]
[392073285,1761136282514,-2863.84,0.00049589,30]
[392073286,1761136282523,-1637.97,0.00049589,120]
[392073287,1761136282533,-1166.77,0.00049589,120]
[392073288,1761136282542,-744.86,0.00049589,120]
[392073289,1761136282552,-1207.01,0.00049589,120]
[392073290,1761136282561,-933.44,0.00049589,120]
[392073291,1761136282571,-506.79,0.00049589,120]
[392073292,1761136282582,-249.97154255,0.00049589,120]
[392073293,1761136282593,-10625.73,0.00049589,14]
[392073294,1761136282603,-1178.29,0.00049589,120]
[392073295,1761136282613,-878.7,0.00049589,120]
[392073296,1761136282622,-4752.5,0.00049589,120]
[392073297,1761136282631,-664.87,0.00049589,120]
[392073298,1761136282642,-668.78,0.00049589,120]
[392073299,1761136282651,-1327.11,0.00049589,120]
[392073300,1761136282660,-1030.79,0.00049589,120]
[392073301,1761136282670,-508.49,0.00049589,120]
[392073302,1761136282681,-1158.45,0.00049589,120]
[392073303,1761136282691,-601.91,0.00049589,120]
[392073304,1761136282700,-1091.0,0.00049613,30]
[392073305,1761136282711,-582.58,0.00049643,120]
[392073306,1761136282722,-5164.0,0.00049643,120]
[392073307,1761136282732,-856.57,0.00049643,120]
[392073308,1761136282742,-938.33,0.00049643,120]
[392073309,1761136282752,-713.85,0.00049643,120]
[392073310,1761136282762,-805.35,0.00049643,120]
[392073311,1761136282772,-1217.66,0.00049643,120]
[392073312,1761136282781,-800.56,0.00049643,120]
[392073313,1761136282791,-1794.18,0.00049643,120]
[392073314,1761136282800,-1000.0,0.0004976,120]
[392073315,1761136282809,-30000.0,0.000498,120]
[392073316,1761136282818,-10000.0,0.000498,120]
[392073317,1761136282829,-127644.38070103,0.000498,30]
[392073318,1761136282837,-2000.0,0.0004986,59]
[392073319,1761136282847,-630.1,0.00049863,120]
[392073320,1761136282856,-790.48,0.00049863,120]
[392073321,1761136282866,-501.67,0.00049863,120]
[392073322,1761136282877,-500.0,0.00049863,120]
[392073323,1761136282886,-1774.5,0.00049863,60]
[392073324,1761136282895,-911.59,0.00049863,120]
[392073325,1761136282905,-774.69,0.00049863,120]
[392073326,1761136282914,-565.62,0.00049863,120]
[392073327,1761136282925,-649.37,0.00049863,30]
[392073328,1761136282935,-402.21384511,0.00049863,120]
[392073329,1761136282945,-959.74,0.00049863,120]
[392073330,1761136282956,-629.63,0.00049863,120]
[392073331,1761136282966,-807.42,0.00049863,120]
[392073332,1761136282976,-1040.88,0.00049863,120]
[392073333,1761136282986,-1060.98,0.00049863,120]
[392073334,1761136282996,-843.75,0.00049863,120]
[392073335,1761136283006,-904.48,0.00049863,120]
[392073336,1761136283016,-3305.92,0.00049863,120]
[392073337,1761136283025,-615.48,0.00049863,120]
[392073338,1761136283036,-1407.21,0.00049863,120]
[392073339,1761136283047,-682.22,0.00049863,120]
[392073340,1761136283057,-568.21,0.00049863,120]
[392073341,1761136283067,-1200.9,0.00049863,120]
[392073342,1761136283077,-932.59,0.00049863,120]
[392073343,1761136283086,-1170.48,0.00049863,120]
[392073344,1761136283096,-339.62869415,0.00049863,120]
[392073345,1761136283106,-638.4,0.00049863,120]
[392073346,1761136283116,-1270.99,0.00049863,120]
[392073347,1761136283129,-1189.64,0.00049863,120]
[392073348,1761136283140,-1087.75,0.00049863,12]
[392073349,1761136283149,-940.69,0.00049863,120]
[392073350,1761136283159,-925.82,0.00049863,120]
[392073351,1761136283169,-1280.38,0.00049863,120]
[392073352,1761136283179,-875.57,0.00049863,2]
[392073353,1761136283189,-830.71,0.00049863,120]
[392073354,1761136283199,-760.46,0.00049863,120]
[392073355,1761136283209,-964.7,0.00049863,120]
[392073356,1761136283219,-1167.09,0.00049863,120]
[392073357,1761136283229,-1476.47,0.00049863,120]
[392073358,1761136283238,-1391.79,0.00049863,120]
[392073359,1761136283248,-562.75338933,0.00049863,120]
[392073360,1761136283257,-560.77,0.00049863,120]
[392073361,1761136283267,-836.47,0.00049863,120]
[392073362,1761136283277,-1536.18,0.00049863,120]
[392073363,1761136283286,-2863.84,0.00049863,30]
[392073364,1761136283295,-1637.97,0.00049863,120]
[392073365,1761136283305,-1166.77,0.00049863,120]
[392073366,1761136283314,-744.86,0.00049863,120]
[392073367,1761136283324,-1207.01,0.00049863,120]
[392073368,1761136283334,-933.44,0.00049863,120]
[392073369,1761136283344,-506.79,0.00049863,120]
[392073370,1761136283354,-10625.73,0.00049863,14]
[392073371,1761136283364,-1178.29,0.00049863,120]
[392073372,1761136283381,-878.7,0.00049863,120]
[392073373,1761136283391,-4752.5,0.00049863,120]
[392073374,1761136283401,-664.87,0.00049863,120]
[392073375,1761136283411,-668.78,0.00049863,120]
[392073376,1761136283421,-1327.11,0.00049863,120]
[392073377,1761136283431,-1030.79,0.00049863,120]
[392073378,1761136283441,-508.49,0.00049863,120]
[392073379,1761136283451,-1158.45,0.00049863,120]
[392073380,1761136283460,-601.91,0.00049863,120]
[392073381,1761136283469,-41833.26264038,0.00049898,120]
[392073382,1761136283480,-3501.22576705,0.000499,120]
[392073383,1761136283489,-394.0,0.000499,2]
[392073384,1761136283499,-535.33002248,0.000499,2]
[392073385,1761136283508,-234.23637766,0.000499,120]
[392073386,1761136283517,-234.23637759,0.000499,120]
[392073387,1761136283527,-234.23637759,0.000499,120]
[392073388,1761136283537,-234.23637759,0.000499,120]
[392073389,1761136283546,-234.23637759,0.000499,120]
[392073390,1761136283556,-234.23637759,0.000499,120]
[392073391,1761136283565,-234.23637759,0.000499,120]
[392073392,1761136283575,-234.23637759,0.000499,120]
[392073393,1761136283584,-234.23637759,0.000499,120]
[392073394,1761136283594,-234.23637759,0.000499,120]
[392073395,1761136283604,-582.58,0.00049917,120]
[392073396,1761136283614,-5164.0,0.00049917,120]
[392073397,1761136283624,-856.57,0.00049917,120]
[392073398,1761136283635,-938.33,0.00049917,120]
[392073399,1761136283645,-713.85,0.00049917,120]
[392073400,1761136283655,-805.35,0.00049917,120]
[392073401,1761136283665,-1217.66,0.00049917,120]
[392073402,1761136283675,-800.56,0.00049917,120]
[392073403,1761136283684,-1794.18,0.00049917,120]
[392073404,1761136283693,-892.48685873,0.00049986,120]
[392073405,1761136283703,-5441.90109083,0.0004999,14]
[392073406,1761136283712,-151.69392832,0.00049999,35]
[392073407,1761136283722,-302.20408551,0.00049999,120]
[392073408,1761136283731,-461.89909908,0.00049999,120]
[392073409,1761136283741,-466.57663764,0.00049999,120]
[392073410,1761136283750,-487.41750861,0.00049999,120]
[392073411,1761136283760,-482.33040192,0.00049999,120]
[392073412,1761136283769,-380.01530316,0.00049999,15]
[392073413,1761136283778,-398.28319717,0.00049999,120]
[392073414,1761136283788,-446.00485301,0.00049999,7]
[392073415,1761136283798,-50000.0,0.0005,50]
[392073416,1761136283807,-1144.65772626,0.0005,2]
[392073417,1761136283817,-602.36000206,0.0005,7]
[392073418,1761136283826,-600.0,0.0005,14]
[392073419,1761136283835,-400.0,0.0005,7]
[392073420,1761136283845,-5026.78959911,0.0005,20]
[392073421,1761136283854,-1343.37685594,0.0005,120]
[392073422,1761136283864,-1079.4597843,0.0005,120]
[392073423,1761136283873,-164.95091164,0.0005,120]
[392073424,1761136283884,-500.0,0.0005,30]
[392073425,1761136283893,-5000.0,0.0005,120]
[392073426,1761136283903,-10000.0,0.0005,120]
[392073427,1761136283913,-475.80997702,0.0005,120]
[392073428,1761136283923,-10000.0,0.0005,30]
[392073429,1761136283932,-10000.0,0.0005,30]
[392073430,1761136283942,-10000.0,0.0005,30]
[392073431,1761136283951,-10000.0,0.0005,120]
[392073432,1761136283961,-241.0,0.0005,120]
[392073433,1761136283971,-1000.0,0.0005,120]
[392073434,1761136283980,-41470.76431486,0.0005,120]
[392073435,1761136283990,-1000.0,0.0005,60]
[392073436,1761136284000,-150.0,0.0005,90]
[392073437,1761136284010,-150.0,0.0005,120]
[392073438,1761136284020,-2790.5558536,0.0005,120]
[392073439,1761136284030,-427.81484958,0.0005,120]
[392073440,1761136284040,-150.0,0.0005,50]
[392073441,1761136284050,-13620.85,0.0005,120]
[392073442,1761136284060,-1000.0,0.0005,120]
[392073443,1761136284070,-5897.33054114,0.0005,120]
[392073444,1761136284080,-25133.16,0.0005,120]
[392073445,1761136284090,-4704.93566457,0.0005,120]
[392073446,1761136284101,-878.06105084,0.0005,120]
[392073447,1761136284111,-10239.0,0.0005,60]
[392073448,1761136284121,-655.9924381,0.0005,120]
[392073449,1761136284132,-2500.0,0.0005,120]
[392073450,1761136284142,-2543.21,0.0005,120]
[392073451,1761136284152,-100167.87557368,0.0005,30]
[392073452,1761136284162,-224.86717536,0.0005,120]
[392073453,1761136284172,-50790.39529716,0.0005,60]
[392073454,1761136284183,-469467.19239726,0.0005,120]
[392073455,1761136284193,-1218635.60786952,0.0005,120]
[392073456,1761136284204,-4159.53183303,0.0005,120]
[392073457,1761136284213,-6005.17150033,0.0005,60]
[392073458,1761136284223,-201428.85003958,0.0005,30]